bitfinex/quotes_ETHUSD_20250626
["timestamp","ask_amount","ask_price","bid_price","bid_amount"]
[1750923106754,0.7732,2495.9,2495.5,2.80466883]
[1750923107358,0.7732,2495.9,2495.5,0.2]
[1750923107657,0.7732,2495.9,2495.2,10.0]
[1750923107852,0.7732,2495.9,2495.1,10.2]
[1750923107853,0.2,2495.6,2495.1,10.2]
[1750923108154,0.2,2495.6,2494.7,2.60551518]
[1750923108155,0.7648,2495.5,2494.7,2.60551518]
[1750923108355,0.2,2495.3,2494.8,0.2]
[1750923108658,0.7696,2495.2,2494.8,0.2]
[1750923108858,0.9689,2494.9,2494.4,0.2]
[1750923109059,0.9689,2494.9,2494.0,7.5389]
[1750923109060,0.7689,2494.9,2494.0,0.8249]
[1750923109223,0.2,2494.7,2494.3,0.2]
[1750923109856,0.2,2494.7,2494.3,2.80589825]
[1750923111976,0.7689,2494.9,2494.6,0.2]
[1750923113861,10.7689,2494.9,2493.4,0.7745]
[1750923114026,0.2,2494.2,2493.7,0.2]
[1750923114325,0.7617,2494.0,2493.7,0.2]
[1750923114925,0.2,2494.2,2493.7,0.9842]
[1750923115165,0.7667,2494.3,2493.6,2.60666949]
[1750923115462,0.7667,2494.3,2493.4,10.7952]
[1750923115802,0.7667,2494.3,2493.5,0.55]
[1750923115925,0.7667,2494.3,2493.5,3.15676744]
[1750923116124,0.7667,2494.3,2493.2,0.7931]
[1750923116354,0.7588,2494.2,2493.2,0.7931]
[1750923116559,0.7588,2494.2,2493.4,10.0]
[1750923117166,0.7588,2494.2,2493.3,10.0]
[1750923117453,1.801,2494.1,2493.3,10.0]
[1750923117673,0.8181,2494.0,2493.3,10.0]
[1750923117957,1.08001,2494.0,2493.3,10.0]
[1750923118258,1.08001,2494.0,2493.3,12.60697943]
[1750923118825,1.08001,2494.0,2493.4,2.60687037]
[1750923119224,1.08001,2494.0,2493.3,10.0]
[1750923119650,1.08001,2494.0,2493.3,12.60698609]
[1750923120372,1.08001,2494.0,2493.3,12.6069381]
[1750923120567,1.08001,2494.0,2493.3,12.60696519]
[1750923120863,1.08001,2494.0,2493.2,3.15703948]
[1750923121036,0.7532,2493.9,2493.0,0.8399]
[1750923121436,1.802,2493.8,2493.0,0.8399]
[1750923121631,0.7802,2493.7,2493.1,10.0]
[1750923121873,0.7802,2493.7,2493.2,2.60707175]
[1750923122173,1.802,2493.6,2493.1,12.60715223]
[1750923122380,0.7802,2493.7,2493.2,2.6070481]
[1750923122539,2.5822,2493.7,2493.3,2.60689017]
[1750923122960,0.8289,2493.5,2493.0,0.8399]
[1750923123164,0.8289,2493.5,2493.0,3.44711896]
[1750923123349,0.8289,2493.5,2493.0,3.44716215]
[1750923123552,0.8289,2493.5,2493.1,2.60714267]
[1750923123755,0.8289,2493.5,2493.0,3.44714564]
[1750923124181,2.6309,2493.5,2493.1,2.60719544]
[1750923124479,0.8289,2493.5,2493.2,2.60701469]
[1750923124647,0.8289,2493.5,2493.2,2.60702341]
[1750923124839,0.8289,2493.5,2493.0,1.6114]
[1750923125079,0.8289,2493.5,2493.2,0.2]
[1750923125837,0.2,2493.4,2493.0,0.8399]
[1750923126037,0.2,2493.1,2493.0,0.8399]
[1750923126266,2.002,2493.1,2493.0,0.8399]
[1750923126639,12.6303,2493.1,2493.0,0.8399]
[1750923129058,10.7626,2493.0,2491.8,2.60850078]
[1750923129259,0.825,2492.9,2491.8,10.0]
[1750923129453,0.825,2492.7,2492.0,2.60833251]
[1750923129673,1.796,2492.6,2492.1,2.60816165]
[1750923129861,1.796,2492.6,2492.2,0.55]
[1750923130061,1.796,2492.6,2492.2,2.60807888]
[1750923130469,1.796,2492.6,2492.1,0.8271]
[1750923130806,0.2621,2492.5,2492.0,2.60834279]
[1750923130981,0.2621,2492.5,2491.9,12.60840015]
[1750923131353,0.2621,2492.5,2491.9,10.0]
[1750923131558,0.7593,2492.4,2491.6,2.6087206]
[1750923131770,0.7593,2492.4,2491.7,12.60865893]
[1750923131968,1.04104,2492.4,2491.7,12.60865893]
[1750923132164,1.04104,2492.4,2491.7,2.60865893]
[1750923132365,1.04104,2492.4,2491.5,3.3852563]
[1750923132571,1.04104,2492.4,2491.7,2.60858547]
[1750923133184,1.04104,2492.4,2491.6,3.15875818]
[1750923133778,1.04104,2492.4,2491.6,0.55]
[1750923134077,1.04104,2492.4,2491.6,3.15871908]
[1750923134810,0.805,2492.3,2491.2,0.55]
[1750923135012,0.805,2492.3,2491.5,0.55]
[1750923135572,0.805,2492.3,2491.5,2.60886674]
[1750923135816,0.805,2492.3,2491.5,3.15880775]
[1750923136010,0.805,2492.3,2491.5,0.55]
[1750923136316,0.8138,2491.9,2490.8,2.60959496]
[1750923136524,1.796,2491.8,2490.7,2.60970811]
[1750923136820,0.2,2491.5,2491.0,0.2]
[1750923137173,0.2,2491.5,2491.0,2.80934486]
[1750923137418,0.2,2491.5,2491.0,0.2]
[1750923137972,0.2,2491.5,2491.0,2.80934501]
[1750923138288,1.796,2491.8,2490.2,0.8097]
[1750923138289,0.8059,2491.4,2490.2,0.8097]
[1750923138489,1.997,2491.3,2490.8,0.2]
[1750923139175,0.806,2491.2,2490.2,0.8097]
[1750923139573,0.806,2491.2,2490.3,2.61003682]
[1750923139777,0.2603,2491.1,2490.4,3.16000084]
[1750923140221,0.2603,2491.1,2490.5,2.60982668]
[1750923140777,0.2603,2491.1,2490.5,2.60986773]
[1750923141011,0.2603,2491.1,2490.6,2.60980081]
[1750923141209,0.2603,2491.1,2490.2,0.8097]
[1750923141410,0.2603,2491.1,2490.3,12.61012729]
[1750923141681,0.2603,2491.1,2490.3,2.61012729]
[1750923141905,0.2603,2491.1,2490.3,0.55]
[1750923142119,0.2603,2491.1,2490.4,2.61002248]
[1750923142325,0.2603,2491.1,2490.5,2.60986679]
[1750923142506,0.2603,2491.1,2490.7,2.60965263]
[1750923142821,0.806,2491.2,2490.3,0.55]
[1750923143021,0.806,2491.2,2490.6,2.60975194]
[1750923143222,0.806,2491.2,2490.7,2.60970613]
[1750923143427,0.806,2491.2,2490.6,2.60976887]
[1750923144231,0.806,2491.2,2490.6,0.55]
[1750923144528,1.0663,2491.2,2490.3,3.16006694]
[1750923144723,1.0663,2491.2,2490.5,2.60986118]
[1750923145389,1.0663,2491.2,2490.3,0.55]
[1750923145735,1.0663,2491.2,2490.6,2.60973307]
[1750923146418,1.0663,2491.2,2490.7,2.60969715]
[1750923146822,0.7554,2491.0,2490.5,2.6098729]
[1750923146994,0.7554,2491.0,2490.6,2.60979743]
[1750923147199,0.7554,2491.0,2490.7,2.60966184]
[1750923148689,0.7554,2491.0,2490.4,0.8239]
[1750923148690,0.7671,2491.5,2490.4,0.8239]
[1750923148889,1.797,2491.4,2490.9,2.60945177]
[1750923149182,1.797,2491.4,2491.0,0.2]
[1750923149822,1.797,2491.4,2490.5,10.55]
[1750923149823,0.7943,2491.3,2490.5,10.55]
[1750923150038,0.7943,2490.9,2490.6,0.2]
[1750923150185,0.7523,2490.7,2490.4,0.2]
[1750923151023,1.02723,2490.7,2490.4,0.2]
[1750923151209,0.2,2490.4,2490.0,2.81118614]
[1750923151803,0.2,2490.4,2490.0,0.2008]
[1750923152412,0.7883,2490.3,2489.4,6.713]
[1750923152720,0.9883,2490.3,2489.8,2.8113998]
[1750923152902,0.9883,2490.3,2489.8,0.2008]
[1750923153105,0.7883,2490.3,2490.0,2.61038837]
[1750923153346,0.7883,2490.3,2489.7,0.55]
[1750923153532,0.7883,2490.3,2489.9,0.2008]
[1750923154229,0.7883,2490.3,2489.7,0.55]
[1750923154230,1.06693,2490.3,2489.7,0.55]
[1750923154428,0.2,2490.2,2489.9,2.61050121]
[1750923154725,0.2,2490.2,2489.8,0.2008]
[1750923154726,0.7883,2490.3,2490.0,2.61038992]
[1750923154931,0.7883,2490.3,2489.9,2.81129498]
[1750923155304,0.7883,2490.3,2489.9,2.8113149]
[1750923155727,0.7883,2490.3,2489.9,0.2008]
[1750923156390,2.5863,2490.3,2489.9,0.2008]
[1750923156599,2.5863,2490.3,2489.9,2.81127949]
[1750923156795,0.7883,2490.3,2489.9,0.2008]
[1750923157109,2.5863,2490.3,2489.9,0.2008]
[1750923157315,1.77164234,2490.5,2490.4,2.61002248]
[1750923157505,0.8212,2490.7,2490.4,2.60997997]
[1750923157709,0.8212,2490.7,2490.5,2.6099162]
[1750923157903,0.8212,2490.7,2490.4,0.2]
[1750923158106,0.8212,2490.7,2490.1,0.55]
[1750923158314,1.15488935,2490.6,2490.2,0.2]
[1750923158527,0.2,2490.6,2490.2,0.2]
[1750923158739,1.15487271,2490.6,2490.2,0.2]
[1750923158891,0.7522,2490.5,2489.6,6.713]
[1750923159093,0.45452,2490.4,2490.0,0.2008]
[1750923159310,1.40976095,2490.4,2490.0,0.2008]
[1750923159511,0.7522,2490.3,2490.0,0.2008]
[1750923159831,0.2,2490.2,2489.8,0.2008]
[1750923159997,0.7698,2490.1,2489.8,0.2008]
[1750923160938,0.7698,2490.1,2489.5,0.55]
[1750923160939,0.8211,2490.4,2490.1,2.61026434]
[1750923161231,0.8211,2490.4,2490.1,3.16028801]
[1750923161441,0.8211,2490.4,2490.2,2.81021253]
[1750923161732,0.8211,2490.4,2490.2,2.81020488]
[1750923161907,0.8211,2490.4,2490.2,0.2]
[1750923162515,0.8211,2490.4,2490.2,2.81022817]
[1750923162716,0.8211,2490.4,2490.3,2.61012729]
[1750923162922,0.7896,2490.8,2490.4,2.61001756]
[1750923163119,0.7896,2490.8,2490.1,1.3778]
[1750923163120,0.95670732,2490.7,2490.3,2.81010399]
[1750923163334,0.9896,2490.8,2490.4,2.60996795]
[1750923163534,0.95733656,2490.7,2490.3,2.81006691]
[1750923163835,0.9896,2490.8,2490.3,0.2]
[1750923164052,1.72464808,2490.7,2490.3,0.2]
[1750923164333,0.2,2491.2,2490.7,0.2]
[1750923164512,1.7088808,2491.1,2490.7,0.2]
[1750923164702,0.9580808,2491.0,2490.7,0.2]
[1750923164903,0.9580808,2490.9,2490.7,0.2]
[1750923165132,0.7508,2491.1,2490.7,0.2]
[1750923165335,0.95880971,2491.0,2490.7,0.2]
[1750923165503,0.95880971,2490.9,2490.7,0.2]
[1750923165707,0.95880971,2490.8,2490.7,0.2]
[1750923166240,0.9592381,2490.8,2490.7,2.80970811]
[1750923166435,0.9592381,2490.8,2490.7,0.2]
[1750923166736,0.2,2491.2,2490.8,0.55]
[1750923166902,0.2,2491.5,2491.0,2.60939381]
[1750923167108,0.95909571,2491.4,2491.1,2.60920636]
[1750923167441,0.95909571,2491.3,2491.2,2.60917523]
[1750923168219,0.95909571,2491.3,2491.1,2.60923677]
[1750923168538,0.2,2491.5,2491.0,0.2]
[1750923168842,0.95902822,2491.4,2490.2,10.0]
[1750923169043,0.2,2491.2,2490.9,2.60949652]
[1750923169405,0.7658,2491.1,2490.8,0.2]
[1750923169707,0.95908466,2491.0,2490.5,8.504]
[1750923170017,0.95908466,2490.9,2490.7,0.2]
[1750923170202,0.9658,2491.1,2490.7,0.2]
[1750923170406,0.2,2490.9,2490.5,0.2]
[1750923170858,0.95920316,2490.8,2490.5,0.2]
[1750923171007,0.2,2490.9,2490.5,0.2]
[1750923171528,0.2,2490.9,2490.5,2.80982333]
[1750923171732,0.2,2490.9,2490.6,2.60975968]
[1750923172747,0.7658,2491.1,2490.7,2.60960384]
[1750923173052,0.7658,2491.1,2490.8,0.2]
[1750923173652,0.2,2491.2,2490.8,0.2]
[1750923176760,1.15898187,2491.2,2490.8,0.2]
[1750923177260,0.2,2491.2,2490.8,0.2]
[1750923177456,0.47481,2491.2,2490.8,0.2]
[1750923180162,0.27481,2491.2,2490.4,2.61002117]
[1750923180364,0.2,2491.1,2490.6,0.2]
[1750923180529,0.2,2491.1,2490.2,0.7551]
[1750923180530,0.7958,2491.0,2489.9,3.41306888]
[1750923180728,0.2,2490.8,2490.3,0.2]
[1750923180924,0.57477819,2490.8,2490.3,0.2]
[1750923181478,0.2,2490.5,2490.1,0.2]
[1750923182168,0.817,2490.7,2489.9,10.8026]
[1750923182529,0.817,2490.7,2489.9,0.8026]
[1750923183175,0.817,2490.7,2489.9,3.41314056]
[1750923183394,0.21507601,2490.6,2489.9,0.8026]
[1750923183732,0.21507601,2490.6,2489.8,10.0]
[1750923184054,0.7899,2490.5,2489.8,10.0]
[1750923185178,0.7899,2490.5,2489.7,10.7696]
[1750923185869,1.793,2490.4,2489.5,10.8143]
[1750923186044,0.25829,2490.3,2489.7,2.61070208]
[1750923186240,0.25829,2490.3,2489.6,2.61077165]
[1750923186978,0.25829,2490.3,2489.7,2.61075383]
[1750923187173,0.25829,2490.3,2489.5,3.42523757]
[1750923187380,0.25829,2490.3,2489.6,2.61086118]
[1750923187678,1.793,2490.4,2489.6,0.55]
[1750923187877,2.5829,2490.5,2489.8,2.61064494]
[1750923189087,0.8055,2490.4,2489.6,0.55]
[1750923189780,0.8055,2490.4,2489.5,2.61092413]
[1750923190084,0.8055,2490.4,2489.5,10.55]
[1750923190284,0.8091,2490.2,2489.1,3.36533675]
[1750923190459,0.8091,2490.2,2489.2,2.61120019]
[1750923190660,1.789,2490.1,2489.2,3.16121726]
[1750923190860,0.8091,2490.0,2489.2,3.16121726]
[1750923191063,0.8091,2490.0,2489.3,2.61117351]
[1750923191693,0.8091,2490.0,2489.5,3.36491824]
[1750923192062,0.8091,2490.0,2489.7,0.2008]
[1750923193752,0.8091,2490.0,2489.2,13.16127935]
[1750923193972,0.2008,2489.9,2489.4,0.2008]
[1750923194184,0.2008,2489.9,2489.4,2.81184911]
[1750923194561,0.2008,2489.9,2489.5,2.6109324]
[1750923194983,0.7624,2489.8,2488.8,1.79]
[1750923195186,0.9632,2489.8,2489.3,2.81195188]
[1750923195368,1.79,2489.9,2489.6,0.2008]
[1750923195568,0.8167,2490.0,2489.6,0.2008]
[1750923195864,0.2008,2490.1,2489.6,2.81160631]
[1750923196285,0.2008,2490.1,2489.6,2.81161932]
[1750923197095,0.2008,2490.1,2489.7,2.61071734]
[1750923197998,0.2008,2490.1,2489.8,2.61064601]
[1750923198197,0.2008,2490.1,2489.7,2.61068813]
[1750923198409,0.2008,2490.1,2489.8,2.61059376]
[1750923198708,0.2008,2490.1,2489.7,2.61070823]
[1750923198905,0.2008,2490.1,2489.6,0.2008]
[1750923199077,0.7856,2490.5,2490.1,2.61025626]
[1750923199274,0.7856,2490.5,2490.2,0.2]
[1750923199792,0.7856,2490.5,2490.2,2.81017396]
[1750923199968,0.7856,2490.5,2490.2,0.2]
[1750923202408,0.7856,2490.5,2490.0,2.61044021]
[1750923202608,0.9856,2490.5,2490.0,2.81044021]
[1750923203712,0.2,2490.5,2490.1,3.41912668]
[1750923203886,0.2,2490.5,2490.1,0.8088]
[1750923204075,0.2,2490.5,2490.0,2.81038601]
[1750923204785,0.2,2490.5,2490.1,2.61029851]
[1750923205405,0.2,2490.5,2490.0,2.81038766]
[1750923205613,0.2,2490.5,2490.0,0.2]
[1750923206117,0.2,2490.5,2490.0,2.81037245]
[1750923206315,0.2,2490.5,2490.0,0.2]
[1750923206481,0.7771,2490.4,2489.8,2.61064151]
[1750923206680,0.2,2490.3,2489.9,0.2008]
[1750923207412,0.7771,2490.4,2490.0,2.61035671]
[1750923207596,0.9694,2490.6,2490.3,2.61003775]
[1750923207799,0.2,2490.8,2490.3,2.81003775]
[1750923207994,0.47594,2490.8,2490.3,2.81003775]
[1750923208782,0.47594,2490.8,2490.4,2.6100179]
[1750923209191,0.47594,2490.8,2490.3,2.81007344]
[1750923209804,0.47594,2490.8,2490.4,2.61001219]
[1750923210004,0.95951195,2491.2,2490.7,2.60966542]
[1750923210190,0.95951195,2491.2,2490.7,2.80966542]
[1750923210191,0.95951195,2491.1,2490.7,2.80966542]
[1750923210389,1.15951195,2491.2,2490.7,2.80966542]
[1750923210989,1.15951195,2491.2,2490.7,0.2]
[1750923211193,0.8164,2491.3,2490.8,2.60955613]
[1750923211506,1.0164,2491.3,2490.9,0.2]
[1750923211700,1.29704,2491.3,2490.9,0.2]
[1750923214240,1.0164,2491.3,2490.9,0.2]
[1750923216095,1.0164,2491.3,2490.9,2.80948746]
[1750923216326,1.0164,2491.3,2490.9,0.2]
[1750923217934,0.2,2491.3,2491.0,0.7956]
[1750923218496,0.2,2491.3,2490.9,2.80942085]
[1750923219530,0.987,2491.3,2490.9,0.2]
[1750923224030,0.987,2491.3,2490.6,0.55]
[1750923224031,0.8169,2491.5,2491.2,2.60918047]
[1750923224227,0.8169,2491.5,2491.2,0.2]
[1750923226665,1.0288,2491.7,2491.2,0.2]
[1750923227674,0.8288,2491.7,2491.3,0.2]
[1750923230594,0.8288,2491.7,2491.3,2.80904429]
[1750923230761,9.633,2492.2,2491.3,0.55]
[1750923230762,0.7809,2491.9,2491.3,0.55]
[1750923231074,0.7809,2491.9,2491.5,0.2]
[1750923234686,0.7809,2491.9,2491.6,2.60874963]
[1750923235361,0.7809,2491.9,2491.5,0.2]
[1750923235783,0.7809,2491.9,2491.5,2.8088276]
[1750923235985,0.7809,2491.9,2491.6,2.60872532]
[1750923236405,0.7809,2491.9,2491.5,2.80880493]
[1750923237694,0.7809,2491.9,2491.5,0.2]
[1750923238790,0.7809,2491.9,2491.5,2.80885667]
[1750923239607,0.7809,2491.9,2491.6,2.60872286]
[1750923239791,0.8308,2492.1,2491.7,0.2]
[1750923240603,0.7725,2492.3,2491.9,2.60838642]
[1750923240816,0.7725,2492.3,2492.0,0.2]
[1750923240973,0.7725,2492.3,2491.4,2.60892639]
[1750923241298,0.7853,2492.0,2491.6,0.2]
[1750923242098,0.2,2491.9,2491.4,0.2]
[1750923242303,0.7701,2491.8,2491.4,0.2]
[1750923244210,0.7701,2491.8,2491.0,12.60938091]
[1750923244403,0.7868,2491.4,2491.1,0.2]
[1750923244916,0.7868,2491.4,2490.6,2.60971067]
[1750923245207,0.7868,2491.4,2490.9,0.2]
[1750923245208,0.7868,2491.3,2490.9,0.2]
[1750923245407,0.7868,2491.3,2489.8,9.632]
[1750923245594,0.2,2490.9,2490.5,0.2]
[1750923245799,0.7796,2490.8,2490.5,0.2]
[1750923245998,0.2,2490.9,2490.6,2.60975313]
[1750923246182,0.2,2490.9,2490.6,10.0]
[1750923246378,0.7796,2491.0,2490.7,2.80970557]
[1750923247084,0.7796,2491.0,2490.8,2.60957519]
[1750923247325,0.2,2491.1,2490.8,2.60960334]
[1750923248093,0.2,2491.1,2490.7,2.8096654]
[1750923248715,0.2,2491.1,2490.8,2.60958362]
[1750923249112,0.2,2491.1,2490.7,2.80967862]
[1750923249812,0.2,2491.1,2490.8,2.60955656]
[1750923250178,0.2,2491.1,2490.9,2.60948569]
[1750923250380,0.9596378,2491.6,2490.8,2.60960334]
[1750923250575,1.0075,2491.5,2491.0,2.80937394]
[1750923250792,0.8075,2491.5,2491.1,2.60924205]
[1750923250989,0.8075,2491.5,2491.2,0.2]
[1750923251427,0.81,2491.7,2491.3,2.60901982]
[1750923251595,0.81,2491.7,2491.4,0.2]
[1750923251996,0.81,2491.7,2491.4,2.80897033]
[1750923252213,0.2,2491.8,2491.4,0.2]
[1750923252527,0.2,2491.8,2491.4,2.80896952]
[1750923252827,0.8171,2491.9,2491.5,0.2]
[1750923253229,1.7767378,2491.9,2491.5,2.80886905]
[1750923253526,1.7767378,2491.9,2491.6,2.60868601]
[1750923253527,0.8171,2491.9,2491.6,2.60868601]
[1750923254106,0.8171,2491.9,2491.7,2.60865689]
[1750923254331,0.7588,2492.2,2491.8,2.60855606]
[1750923254502,0.7588,2492.2,2491.9,2.60835251]
[1750923254701,0.7588,2492.2,2492.0,0.2]
[1750923255799,0.8135,2492.4,2492.0,0.2]
[1750923256435,0.8135,2492.4,2492.0,2.80834061]
[1750923256630,0.8135,2492.4,2492.0,0.2]
[1750923257924,0.2,2492.2,2491.7,0.2]
[1750923259714,0.7662,2492.1,2491.6,10.0]
[1750923259914,0.2,2492.0,2491.6,0.2]
[1750923261218,0.2,2492.0,2491.6,2.8087193]
[1750923261424,0.2,2492.0,2491.7,2.60864317]
[1750923262029,0.2,2492.0,2491.6,0.2]
[1750923262810,0.2,2492.0,2491.6,2.80872212]
[1750923264151,0.2,2492.0,2491.6,0.2]
[1750923264313,0.7662,2492.1,2491.8,2.60848548]
[1750923264512,0.7662,2492.1,2491.7,2.80861227]
[1750923265447,0.7662,2492.1,2491.8,2.60855093]
[1750923265940,0.7662,2492.1,2491.7,2.80861387]
[1750923268549,0.7662,2492.1,2491.7,0.2]
[1750923268949,0.7662,2492.1,2491.7,2.80865057]
[1750923270341,0.7662,2492.1,2491.7,2.808608]
[1750923271979,0.7662,2492.1,2491.8,2.60845522]
[1750923272178,0.7662,2492.1,2491.7,2.8086064]
[1750923272355,0.7662,2492.1,2491.7,0.2]
[1750923273942,0.7633,2491.9,2491.2,2.6091059]
[1750923274164,0.9633,2491.9,2491.4,0.2]
[1750923274361,0.8073,2491.8,2491.4,0.2]
[1750923274586,6.95393769,2492.0,2491.0,0.8399]
[1750923274587,0.2,2491.6,2491.1,0.2]
[1750923274743,0.2,2491.6,2491.1,2.80928291]
[1750923274943,0.2,2491.6,2491.1,2.80924751]
[1750923275175,0.2,2491.6,2491.3,2.60907795]
[1750923275575,0.2,2491.6,2491.2,2.60913481]
[1750923276210,0.2,2491.6,2491.1,2.80924045]
[1750923276381,0.2,2491.6,2491.1,0.2]
[1750923276577,0.8307,2491.5,2491.1,0.2]
[1750923276781,6.95393769,2491.4,2491.0,0.8399]
[1750923277091,0.8307,2491.1,2491.0,0.8399]
[1750923279896,0.2,2491.2,2491.0,0.8399]
[1750923280280,0.95847424,2491.7,2491.0,3.44926929]
[1750923280606,0.2,2491.4,2491.0,1.0399]
[1750923283695,0.2,2491.4,2491.0,3.64925153]
[1750923284074,0.2,2491.4,2491.1,2.609277]
[1750923284280,0.7722,2491.6,2491.2,2.60913738]
[1750923284517,0.7722,2491.6,2491.2,0.2]
[1750923291909,0.2,2491.5,2491.1,0.2]
[1750923292683,0.2,2491.5,2491.1,2.80927152]
[1750923294025,0.2,2491.5,2491.1,0.2]
[1750923295713,0.2,2491.5,2490.7,1.3071]
[1750923295714,0.2,2491.3,2490.9,0.2]
[1750923297622,0.19895254,2491.3,2490.9,0.19785939]
[1750923297846,0.19791213,2491.3,2490.9,0.19785939]
[1750923299855,0.774,2491.2,2490.9,0.19785939]
[1750923300852,0.974,2491.2,2490.7,0.2]
[1750923302454,0.2,2490.9,2490.5,0.2]
[1750923302614,0.2,2490.9,2490.5,2.80990299]
[1750923303457,0.2,2490.9,2490.5,2.80987856]
[1750923303660,0.2,2491.1,2490.6,2.80976971]
[1750923304178,0.774,2491.2,2490.7,3.37355576]
[1750923304470,0.2,2491.3,2490.8,0.2]
[1750923304671,0.2,2491.3,2490.8,2.80954778]
[1750923305073,0.2,2491.3,2490.9,2.60949007]
[1750923306346,0.2,2491.3,2491.0,2.60933599]
[1750923306559,0.7639,2491.4,2491.0,0.2]
[1750923306743,1.72478968,2491.4,2491.0,0.2]
[1750923306942,1.72478968,2491.4,2491.0,2.8093197]
[1750923307270,1.71228968,2491.8,2491.1,3.39633356]
[1750923307484,0.2,2491.6,2491.2,0.2]
[1750923307678,1.16088968,2491.6,2491.2,0.2]
[1750923307841,0.2,2491.6,2491.2,0.2]
[1750923308045,1.16088968,2491.6,2491.2,0.2]
[1750923308274,0.2,2491.6,2491.2,0.2]
[1750923310480,0.9611442,2491.5,2491.2,0.2]
[1750923310858,0.2,2491.6,2491.2,0.2]
[1750923311784,0.96110847,2491.5,2491.2,0.2]
[1750923311973,0.2,2491.6,2491.2,0.2]
[1750923315993,0.2,2491.6,2491.2,2.80917082]
[1750923316491,0.2,2491.6,2491.2,0.2]
[1750923317569,0.7514,2491.8,2491.2,0.2]
[1750923317570,0.96106779,2491.7,2491.3,2.60903968]
[1750923317893,0.96106779,2491.7,2491.2,2.60915532]
[1750923317894,0.96107441,2491.7,2491.4,0.2]
[1750923318795,6.95393769,2491.5,2490.9,11.80854778]
[1750923319002,1.16107334,2491.5,2491.0,0.2]
[1750923319566,0.2,2491.5,2491.0,0.2]
[1750923319763,0.7959,2491.4,2491.0,0.2]
[1750923320103,0.2,2491.2,2490.7,0.2]
[1750923320265,0.8076,2491.1,2490.7,0.2]
[1750923321102,0.2,2491.0,2490.5,0.2]
[1750923321498,0.2,2491.0,2490.6,10.0]
[1750923321699,0.2,2491.0,2490.6,12.60976894]
[1750923322065,0.2,2491.0,2490.5,2.80985467]
[1750923322271,0.2,2491.0,2490.6,10.0]
[1750923322905,0.2,2491.0,2490.1,2.61030842]
[1750923322906,1.77816856,2490.9,2490.0,3.43019737]
[1750923323208,0.817,2490.7,2489.9,11.0444865]
[1750923323410,0.817,2490.7,2490.0,12.61044157]
[1750923324514,0.817,2490.7,2490.1,2.6103305]
[1750923325513,0.817,2490.7,2490.0,12.61038313]
[1750923326182,0.817,2490.7,2490.1,2.61033298]
[1750923326414,0.817,2490.7,2490.0,12.6103931]
[1750923326657,0.817,2490.7,2490.0,12.61037907]
[1750923326842,0.817,2490.7,2490.1,2.61033208]
[1750923328813,0.817,2490.7,2490.2,0.7971]
[1750923329019,0.7781,2490.9,2490.4,2.61001313]
[1750923329426,0.7781,2490.9,2490.3,2.61009751]
[1750923329653,0.7781,2490.9,2490.4,2.60993913]
[1750923332141,0.7781,2490.9,2490.2,7.4621]
[1750923332317,0.7781,2490.9,2490.5,2.60984614]
[1750923332914,0.9781,2490.9,2490.5,0.2]
[1750923338753,0.7636,2491.2,2490.7,0.55]
[1750923339057,0.7658,2491.5,2491.1,2.60928782]
[1750923339356,0.7658,2491.5,2491.2,2.60915048]
[1750923339538,0.2,2491.6,2491.3,2.6090626]
[1750923339852,0.2,2491.6,2491.2,2.60912449]
[1750923340032,0.7658,2491.7,2491.1,10.55]
[1750923340231,0.7658,2491.7,2491.3,2.80902936]
[1750923340723,0.7658,2491.7,2491.3,0.2]
[1750923341125,0.7658,2491.7,2491.4,2.60888487]
[1750923341329,0.7658,2491.7,2491.3,2.80903569]
[1750923344174,0.7658,2491.7,2491.4,2.60895834]
[1750923344647,0.769,2491.9,2491.6,2.60875415]
[1750923345038,0.769,2491.9,2491.5,2.80882217]
[1750923345867,0.769,2491.9,2491.6,2.6087195]
[1750923346643,0.2,2492.0,2491.7,2.60862438]
[1750923346969,0.2,2492.0,2491.6,2.60870605]
[1750923347168,0.2,2492.0,2491.6,2.60875629]
[1750923348387,0.2,2492.0,2491.5,2.80883266]
[1750923348579,0.2,2492.0,2491.5,0.2]
[1750923348742,0.8225,2491.9,2491.5,0.2]
[1750923350435,0.8225,2491.9,2491.1,9.26620541]
[1750923350638,0.7944,2491.6,2491.3,0.2]
[1750923350839,0.7944,2491.6,2491.0,12.60934952]
[1750923351045,0.2,2491.5,2491.1,2.80928825]
[1750923351251,0.2,2491.5,2491.2,2.60910472]
[1750923351450,0.2,2491.5,2491.1,2.80924145]
[1750923351969,0.2,2491.5,2491.3,2.60907599]
[1750923352583,0.2,2491.5,2491.2,2.60913482]
[1750923352967,0.7944,2491.6,2491.2,2.60918432]
[1750923353173,0.7944,2491.6,2491.3,2.60901975]
[1750923353540,0.7944,2491.6,2491.5,2.60887015]
[1750923353776,0.8311,2491.8,2491.6,2.60875764]
[1750923354365,0.8311,2491.8,2491.5,0.2]
[1750923354564,0.8311,2491.8,2491.5,2.80882382]
[1750923355771,0.8311,2491.8,2491.5,2.80882765]
[1750923356353,0.8311,2491.8,2491.5,0.2]
[1750923358375,0.8311,2491.8,2491.6,2.60874211]
[1750923358980,0.98,2492.0,2491.8,2.60855295]
[1750923359183,0.2,2492.2,2491.8,2.60855295]
[1750923360080,0.78,2492.3,2491.9,2.60838626]
[1750923360263,0.78,2492.3,2492.0,0.2]